bitfinex/quotes_BTCUSD_20241014
["timestamp","ask_amount","ask_price","bid_price","bid_amount"]
[1728908046597,0.74985216,65031.0,65010.0,0.001646]
[1728908046598,0.15382,65011.0,65010.0,0.001646]
[1728908046832,0.25352847,65011.0,65010.0,0.001646]
[1728908047060,0.25352847,65011.0,65010.0,0.1857701]
[1728908047279,0.0037,65020.0,65012.0,0.153816]
[1728908047519,0.1,65016.0,65013.0,0.153814]
[1728908047746,0.25352847,65015.0,65013.0,0.01007984]
[1728908047976,0.15352847,65015.0,65013.0,0.16389284]
[1728908048487,0.1,65022.0,65014.0,0.18184034]
[1728908048705,0.003,65020.0,65019.0,0.0819]
[1728908049155,0.15352847,65021.0,65019.0,0.0819]
[1728908050556,0.15352847,65021.0,65020.0,0.153798]
[1728908050795,0.15352847,65021.0,65020.0,0.092]
[1728908051020,0.15352847,65021.0,65020.0,0.245798]
[1728908051021,0.1523924,65021.0,65020.0,0.245798]
[1728908051250,0.1523924,65021.0,65020.0,0.092]
[1728908051473,0.1503924,65021.0,65020.0,0.092]
[1728908051697,0.1503924,65021.0,65020.0,0.245798]
[1728908051935,0.002,65021.0,65020.0,0.245798]
[1728908053312,0.30756,65028.0,65020.0,0.245798]
[1728908053313,0.30756,65028.0,65020.0,0.092]
[1728908053542,0.30756,65028.0,65020.0,0.245797]
[1728908053543,0.001,65021.0,65020.0,0.245797]
[1728908054672,0.46109347,65027.0,65020.0,0.092]
[1728908054892,0.153788,65025.0,65020.0,0.092]
[1728908055123,0.003,65021.0,65020.0,0.092]
[1728908055351,0.002,65021.0,65020.0,0.153798]
[1728908055869,0.003,65021.0,65020.0,0.153798]
[1728908056107,0.002,65021.0,65019.0,0.0819]
[1728908056328,0.002,65021.0,65020.0,0.153798]
[1728908056550,0.307583,65024.0,65019.0,0.0819]
[1728908056778,0.30732147,65023.0,65019.0,0.0819]
[1728908057715,0.005,65021.0,65019.0,0.0819]
[1728908058162,0.001,65021.0,65019.0,0.0819]
[1728908058388,0.15352847,65023.0,65019.0,0.0819]
[1728908058617,0.15952847,65023.0,65019.0,0.235701]
[1728908058866,0.15381,65015.0,65014.0,0.08]
[1728908059098,0.15381,65015.0,65013.0,0.001648]
[1728908059099,0.153813,65014.0,65013.0,0.001648]
[1728908059354,0.30734147,65014.0,65013.0,0.001648]
[1728908059603,0.40734147,65014.0,65013.0,0.001648]
[1728908060300,0.40934147,65014.0,65013.0,0.001648]
[1728908060767,0.28252,65011.0,65010.0,0.001646]
[1728908061001,0.43604847,65011.0,65010.0,0.001646]
[1728908061453,0.43404847,65011.0,65010.0,0.001646]
[1728908062124,0.44804847,65011.0,65010.0,0.001646]
[1728908063016,0.42134847,65011.0,65010.0,0.001646]
[1728908063237,0.42504847,65011.0,65010.0,0.001646]
[1728908063966,0.46204847,65011.0,65010.0,0.001646]
[1728908064188,0.44804847,65011.0,65010.0,0.001646]
[1728908064408,0.44304847,65011.0,65010.0,0.001646]
[1728908064629,0.45604847,65011.0,65010.0,0.001646]
[1728908064873,0.44904847,65011.0,65010.0,0.001646]
[1728908065101,0.44804847,65011.0,65010.0,0.001646]
[1728908065291,0.44604847,65011.0,65010.0,0.001646]
[1728908065577,0.46004847,65011.0,65010.0,0.001646]
[1728908066059,0.46204847,65011.0,65010.0,0.001646]
[1728908067627,0.69251809,65011.0,65010.0,0.001646]
[1728908067892,0.54494847,65011.0,65010.0,0.001646]
[1728908068104,1.09302147,65011.0,65010.0,0.001646]
[1728908069720,1.07902147,65011.0,65010.0,0.001646]
[1728908070414,1.08102147,65011.0,65010.0,0.001646]
[1728908071076,1.02957247,65011.0,65010.0,0.001646]
[1728908071622,1.04357247,65011.0,65010.0,0.001646]
[1728908072825,0.72480847,65011.0,65010.0,0.001646]
[1728908073047,0.72280847,65011.0,65010.0,0.001646]
[1728908073328,0.46204847,65011.0,65010.0,0.001646]
[1728908074066,0.45004847,65011.0,65010.0,0.001646]
[1728908074338,0.43604847,65011.0,65010.0,0.001646]
[1728908074584,0.46204847,65011.0,65010.0,0.001646]
[1728908078155,0.46004847,65011.0,65010.0,0.001646]
[1728908078643,0.43334847,65011.0,65010.0,0.001646]
[1728908079156,0.27952847,65011.0,65010.0,0.001646]
[1728908079417,0.27952847,65011.0,65010.0,0.231468]
[1728908079418,0.026,65011.0,65010.0,0.231468]
[1728908079625,0.026,65011.0,65010.0,0.077646]
[1728908079852,0.33334847,65011.0,65010.0,0.0117701]
[1728908080044,0.31934847,65011.0,65010.0,0.001646]
[1728908080331,0.30734847,65011.0,65010.0,0.001646]
[1728908080548,0.41434847,65011.0,65010.0,0.001646]
[1728908081015,0.40734847,65011.0,65010.0,0.001646]
[1728908082528,0.41434847,65011.0,65010.0,0.001646]
[1728908082965,0.41034847,65011.0,65010.0,0.001646]
[1728908083189,0.41734847,65011.0,65010.0,0.0117701]
[1728908083411,0.41734847,65011.0,65010.0,0.001646]
[1728908083639,0.41734847,65011.0,65010.0,0.0117701]
[1728908083873,0.41734847,65011.0,65010.0,0.001646]
[1728908084774,0.41734847,65011.0,65010.0,0.0117701]
[1728908084995,0.41734847,65011.0,65010.0,0.001646]
[1728908085228,0.41734847,65011.0,65010.0,0.0117701]
[1728908085473,0.26352847,65011.0,65010.0,0.001646]
[1728908086179,0.26352847,65011.0,65010.0,0.0117701]
[1728908086699,0.26352847,65011.0,65010.0,0.1655921]
[1728908086700,0.01,65011.0,65010.0,0.1655921]
[1728908089836,0.01,65011.0,65010.0,0.2477921]
[1728908091004,0.01,65011.0,65010.0,0.2490921]
[1728908091901,0.01,65011.0,65010.0,0.25444624]
[1728908093312,0.01,65011.0,65010.0,0.0117701]
[1728908093313,0.31734847,65011.0,65010.0,0.0117701]
[1728908093785,0.31734847,65011.0,65010.0,0.001646]
[1728908094298,0.31734847,65011.0,65010.0,0.0117701]
[1728908094542,0.31734847,65011.0,65010.0,0.001646]
[1728908094779,0.31734847,65011.0,65010.0,0.0117701]
[1728908095025,0.31734847,65011.0,65010.0,0.001646]
[1728908095502,0.31734847,65011.0,65010.0,0.0117701]
[1728908095740,0.31734847,65011.0,65010.0,0.001646]
[1728908095976,0.31734847,65011.0,65010.0,0.0117701]
[1728908096227,0.31734847,65011.0,65010.0,0.001646]
[1728908096464,0.31734847,65011.0,65010.0,0.0117701]
[1728908096692,0.31734847,65011.0,65010.0,0.001646]
[1728908096922,0.31734847,65011.0,65010.0,0.0117701]
[1728908097149,0.31734847,65011.0,65010.0,0.001646]
[1728908097415,0.31734847,65011.0,65010.0,0.0117701]
[1728908097631,0.31734847,65011.0,65010.0,0.001646]
[1728908098139,0.31734847,65011.0,65010.0,0.0117701]
[1728908098369,0.31734847,65011.0,65010.0,0.001646]
[1728908098589,0.31734847,65011.0,65010.0,0.0117701]
[1728908098833,0.31734847,65011.0,65010.0,0.001646]
[1728908099081,0.16352847,65011.0,65010.0,0.001646]
[1728908099302,0.31734847,65011.0,65010.0,0.0117701]
[1728908099533,0.31734847,65011.0,65010.0,0.001646]
[1728908100420,0.41734847,65011.0,65010.0,0.001646]
[1728908101088,0.59274847,65011.0,65010.0,0.001646]
[1728908101818,0.5899159,65011.0,65010.0,0.001646]
[1728908103176,0.62467948,65011.0,65010.0,0.001646]
[1728908103398,1.34811129,65011.0,65010.0,0.001646]
[1728908103619,1.21108129,65011.0,65010.0,0.001646]
[1728908104321,1.18263929,65011.0,65010.0,0.001646]
[1728908104517,1.04582229,65011.0,65010.0,0.001646]
[1728908104786,1.05982229,65011.0,65010.0,0.001646]
[1728908105028,0.60400429,65011.0,65010.0,0.001646]
[1728908105247,0.63000429,65011.0,65010.0,0.003646]
[1728908106433,0.63000429,65011.0,65010.0,0.002646]
[1728908106434,0.61600429,65011.0,65010.0,0.002646]
[1728908106652,0.63000429,65011.0,65010.0,0.003646]
[1728908107640,1.19871621,65011.0,65010.0,0.003646]
[1728908107885,1.20071621,65011.0,65010.0,0.003646]
[1728908108376,0.257562,64993.0,64991.0,0.001644]
[1728908108619,1.27176693,64993.0,64991.0,0.001644]
[1728908108854,2.44576493,64993.0,64991.0,0.001644]
[1728908109099,2.41124093,64993.0,64991.0,0.001644]
[1728908109340,0.373165,64992.0,64991.0,0.001644]
[1728908109577,3.06925147,64992.0,64991.0,0.001644]
[1728908109792,0.282569,64990.0,64989.0,0.001646]
[1728908110017,0.282569,64990.0,64964.0,0.001646]
[1728908110018,0.153902,64976.0,64964.0,0.001646]
[1728908110264,0.40743047,64976.0,64964.0,0.001646]
[1728908110522,0.40743047,64976.0,64966.0,0.307849]
[1728908110884,0.40743047,64976.0,64970.0,0.153915]
[1728908111088,0.40743047,64976.0,64966.0,0.307849]
[1728908111344,0.40743047,64976.0,64970.0,0.153916]
[1728908111543,0.40743047,64976.0,64971.0,0.153912]
[1728908112073,0.41343047,64976.0,64970.0,0.153916]
[1728908112284,0.41343047,64976.0,64972.0,0.153911]
[1728908112487,0.41343047,64976.0,64970.0,0.153915]
[1728908112691,0.41343047,64976.0,64969.0,0.153919]
[1728908112884,0.42243047,64976.0,64970.0,0.153916]
[1728908113588,0.42243047,64976.0,64969.0,0.153917]
[1728908114042,0.42243047,64976.0,64965.0,0.0013]
[1728908114265,0.42243047,64976.0,64968.0,0.153919]
[1728908114515,0.42243047,64976.0,64970.0,0.153915]
[1728908114753,0.268902,64976.0,64972.0,0.153912]
[1728908115003,0.015,64976.0,64972.0,0.307824]
[1728908115238,0.015,64976.0,64975.0,0.155551]
[1728908115962,0.015,64976.0,64975.0,0.001646]
[1728908116199,0.015,64976.0,64975.0,0.155551]
[1728908116200,0.006,64976.0,64975.0,0.155551]
[1728908116397,0.153898,64978.0,64975.0,0.001646]
[1728908116696,0.15352847,64977.0,64975.0,0.001646]
[1728908117464,0.253896,64979.0,64975.0,0.001646]
[1728908117694,0.40742447,64979.0,64975.0,0.15555]
[1728908118603,0.003,64976.0,64975.0,0.15555]
[1728908118834,0.003,64976.0,64975.0,0.001646]
[1728908119063,0.153898,64978.0,64975.0,0.001646]
[1728908119289,0.26252847,64979.0,64975.0,0.15555]
[1728908119533,0.307797,64978.0,64975.0,0.001646]
[1728908119751,0.56432347,64979.0,64975.0,0.001646]
[1728908119996,0.41042547,64979.0,64975.0,0.001646]
[1728908120214,0.1539,64977.0,64976.0,0.01062606]
[1728908120682,0.153902,64976.0,64975.0,0.001646]
[1728908120921,0.43043047,64976.0,64975.0,0.001646]
[1728908121143,0.43343047,64976.0,64975.0,0.001646]
[1728908121825,0.43243047,64976.0,64975.0,0.001646]
[1728908122052,0.43043047,64976.0,64975.0,0.001646]
[1728908122306,0.44543047,64976.0,64975.0,0.001646]
[1728908122547,0.45150523,64976.0,64975.0,0.001646]
[1728908123009,0.45350523,64976.0,64975.0,0.001646]
[1728908124138,0.45150523,64976.0,64975.0,0.001646]
[1728908124378,0.42850523,64976.0,64975.0,0.001646]
[1728908124611,0.42243047,64976.0,64975.0,0.001646]
[1728908124863,0.26852847,64976.0,64975.0,0.155551]
[1728908125108,0.015,64976.0,64975.0,0.001646]
[1728908125329,0.015,64976.0,64975.0,0.16619183]
[1728908126971,0.015,64976.0,64975.0,0.16749183]
[1728908127437,0.006,64976.0,64975.0,0.16749183]
[1728908127660,0.253885,64984.0,64975.0,0.01358683]
[1728908127884,0.009,64976.0,64975.0,0.47530083]
[1728908128126,0.009,64976.0,64975.0,0.46466]
[1728908128351,0.1,64979.0,64978.0,0.153898]
[1728908129292,0.1,64982.0,64975.0,0.310755]
[1728908129544,0.1,64982.0,64978.0,0.153896]
[1728908129763,0.002,64979.0,64975.0,0.156851]
[1728908130016,0.102,64979.0,64975.0,0.002946]
[1728908130239,0.102,64979.0,64977.0,0.1539]
[1728908130486,0.102,64979.0,64978.0,0.153898]
[1728908130742,0.102,64979.0,64975.0,0.310756]
[1728908130743,0.107,64979.0,64975.0,0.310756]
[1728908130972,0.005,64979.0,64978.0,0.153898]
[1728908131184,0.1,64982.0,64976.0,0.1539]
[1728908131430,0.1,64979.0,64976.0,0.1539]
[1728908131663,0.253896,64979.0,64975.0,0.15555]
[1728908131873,0.253896,64979.0,64976.0,0.153902]
[1728908132127,0.255896,64979.0,64976.0,0.153902]
[1728908133056,0.153901,64977.0,64975.0,0.001646]
[1728908133308,0.153898,64978.0,64975.0,0.001646]
[1728908133796,0.153902,64976.0,64975.0,0.001646]
[1728908134017,0.1539,64977.0,64975.0,0.001646]
[1728908134278,0.30743047,64976.0,64975.0,0.001646]
[1728908134535,0.40743047,64976.0,64975.0,0.001646]
[1728908134777,0.43043047,64976.0,64975.0,0.001646]
[1728908134992,0.43413047,64976.0,64975.0,0.001646]
[1728908135470,0.44113047,64976.0,64975.0,0.001646]
[1728908136160,0.44913047,64976.0,64975.0,0.001646]
[1728908136913,0.44213047,64976.0,64975.0,0.001646]
[1728908137153,0.45113047,64976.0,64975.0,0.001646]
[1728908137373,0.45726094,64976.0,64975.0,0.001646]
[1728908137625,0.44826094,64976.0,64975.0,0.001646]
[1728908137850,0.45626094,64976.0,64975.0,0.001646]
[1728908138531,0.45426094,64976.0,64975.0,0.001646]
[1728908138758,0.46826094,64976.0,64975.0,0.001646]
[1728908139435,0.47026094,64976.0,64975.0,0.001646]
[1728908140384,1.17566394,64976.0,64975.0,0.001646]
[1728908140623,2.60626494,64976.0,64975.0,0.001646]
[1728908140856,0.54546094,64976.0,64975.0,0.001646]
[1728908141075,1.36450394,64976.0,64975.0,0.001646]
[1728908141328,1.98505194,64976.0,64975.0,0.001646]
[1728908141585,1.98505194,64976.0,64960.0,0.000523]
[1728908141586,0.451929,64965.0,64960.0,0.000523]
[1728908141838,0.451929,64965.0,64958.0,0.000823]
[1728908141839,0.280643,64959.0,64958.0,0.000823]
[1728908142083,2.74875147,64959.0,64958.0,0.000823]
[1728908142319,2.74875147,64959.0,64954.0,1e-06]
[1728908142320,0.462852,64955.0,64954.0,1e-06]
[1728908142554,0.462852,64955.0,64944.0,0.001648]
[1728908142555,0.462876,64945.0,64944.0,0.001648]
[1728908142798,1.59846547,64945.0,64944.0,0.001648]
[1728908143535,1.59846547,64945.0,64926.0,0.001648]
[1728908143536,0.254019,64927.0,64926.0,0.001648]
[1728908143777,0.50884747,64927.0,64926.0,0.001648]
[1728908144474,0.51475664,64927.0,64926.0,0.001648]
[1728908144910,0.52875664,64927.0,64926.0,0.001648]
[1728908145172,0.57059722,64927.0,64926.0,0.001648]
[1728908145398,0.81606684,64927.0,64926.0,0.001648]
[1728908145642,1.27830964,64927.0,64926.0,0.001648]
[1728908145875,1.32015022,64927.0,64926.0,0.001648]
[1728908146111,1.27830964,64927.0,64926.0,0.001648]
[1728908146370,1.28400964,64927.0,64926.0,0.001648]
[1728908146822,1.42365015,64927.0,64926.0,0.001648]
[1728908147037,1.27000964,64927.0,64926.0,0.001648]
[1728908147270,1.28400964,64927.0,64926.0,0.001648]
[1728908147775,1.26800964,64927.0,64926.0,0.001648]
[1728908148003,0.68045064,64927.0,64926.0,0.001648]
[1728908148259,0.54645664,64927.0,64926.0,0.001648]
[1728908148729,0.51845664,64927.0,64926.0,0.001648]
[1728908148946,1.03426264,64927.0,64926.0,0.001648]
[1728908149168,1.03626264,64927.0,64926.0,0.001648]
[1728908150117,1.03426264,64927.0,64926.0,0.001648]
[1728908150370,0.69766664,64927.0,64926.0,0.001648]
[1728908151744,0.46815664,64927.0,64926.0,0.001648]
[1728908152915,0.46224747,64927.0,64926.0,0.001648]
[1728908154060,0.44824747,64927.0,64926.0,0.001648]
[1728908154477,0.44454747,64927.0,64926.0,0.001648]
[1728908154750,0.45854747,64927.0,64926.0,0.001648]
[1728908154979,0.46054747,64927.0,64926.0,0.001648]
[1728908155219,0.43254747,64927.0,64926.0,0.001648]
[1728908155470,0.44354747,64927.0,64926.0,0.001648]
[1728908155713,0.43254747,64927.0,64926.0,0.001648]
[1728908155945,0.43624747,64927.0,64926.0,0.001648]
[1728908156156,0.49208805,64927.0,64926.0,0.001648]
[1728908156615,0.45024747,64927.0,64926.0,0.001648]
[1728908156804,0.46324747,64927.0,64926.0,0.001648]
[1728908157028,0.46124747,64927.0,64926.0,0.001648]
[1728908157249,0.72306147,64927.0,64926.0,0.001648]
[1728908157467,0.70906147,64927.0,64926.0,0.001648]
[1728908157708,0.71106147,64927.0,64926.0,0.001648]
[1728908157939,0.73906147,64927.0,64926.0,0.001648]
[1728908158143,0.68562447,64927.0,64926.0,0.001648]
[1728908158360,0.44824747,64927.0,64926.0,0.001648]
[1728908158828,0.43424747,64927.0,64926.0,0.001648]
[1728908159054,0.81796864,64927.0,64926.0,0.001648]
[1728908159318,0.58379902,64927.0,64926.0,0.001648]
[1728908159543,1.19960647,64927.0,64926.0,0.001648]
[1728908159765,1.20330647,64927.0,64926.0,0.001648]
[1728908160013,1.20330647,64927.0,64913.0,0.001648]
[1728908160014,0.277049,64914.0,64913.0,0.001648]
[1728908160236,0.43057747,64914.0,64913.0,0.001648]
[1728908161387,0.66104709,64914.0,64913.0,0.001648]
[1728908161617,0.43057747,64914.0,64913.0,0.001648]
[1728908161869,0.45857747,64914.0,64913.0,0.001648]
[1728908162089,0.44457747,64914.0,64913.0,0.001648]
[1728908162317,0.45557747,64914.0,64913.0,0.001648]
[1728908163502,0.44157747,64914.0,64913.0,0.001648]
[1728908163975,0.45457747,64914.0,64913.0,0.001648]
[1728908168428,0.68504709,64914.0,64913.0,0.001648]
[1728908168640,0.45457747,64914.0,64913.0,0.001648]
[1728908170597,0.89007547,64914.0,64913.0,0.001648]
[1728908170804,0.93191605,64914.0,64913.0,0.001648]
[1728908171227,0.45457747,64914.0,64913.0,0.001648]
[1728908171673,1.39510267,64914.0,64913.0,0.001648]
[1728908171881,1.16463305,64914.0,64913.0,0.001648]
[1728908172089,1.12279247,64914.0,64913.0,0.001648]
[1728908172845,1.16463305,64914.0,64913.0,0.001648]
[1728908173092,1.15163305,64914.0,64913.0,0.001648]
[1728908173542,1.12379247,64914.0,64913.0,0.001648]
[1728908173765,1.12379247,64914.0,64913.0,0.00035927]
[1728908173766,1.11279247,64914.0,64913.0,0.00035927]
[1728908174507,0.15408,64901.0,64900.0,0.0173272]
[1728908174745,0.43060847,64901.0,64900.0,0.02887028]
[1728908175477,0.43060847,64901.0,64900.0,0.04206246]
[1728908175718,0.27652847,64901.0,64900.0,0.06052702]
[1728908175951,0.25352847,64901.0,64900.0,0.06052702]
[1728908176178,0.40760847,64901.0,64900.0,0.06052702]
[1728908176642,0.41960847,64901.0,64900.0,0.06052702]
[1728908177093,0.41760847,64901.0,64900.0,0.06052702]
[1728908177321,0.25352847,64901.0,64900.0,0.06052702]
[1728908177548,0.25352847,64901.0,64900.0,0.21461002]
[1728908177549,0.012,64901.0,64900.0,0.21461002]
[1728908177766,0.012,64901.0,64900.0,0.22318425]
[1728908178218,0.005,64901.0,64900.0,0.22318425]
[1728908178442,0.005,64901.0,64900.0,0.24625925]
[1728908178884,0.005,64901.0,64900.0,0.22318425]
[1728908179335,0.005,64901.0,64900.0,0.24625851]
[1728908179609,0.005,64901.0,64900.0,0.09217551]
[1728908179863,0.105,64901.0,64900.0,0.06910125]
[1728908180084,0.112,64901.0,64900.0,0.06910125]
[1728908180315,0.012,64901.0,64900.0,0.05516816]
[1728908180547,0.005,64901.0,64900.0,0.33035945]
[1728908180778,0.005,64901.0,64900.0,0.43609422]
[1728908181004,0.012,64901.0,64900.0,0.43107611]
[1728908181233,0.012,64901.0,64900.0,0.43607611]
[1728908181459,0.308059,64923.0,64912.0,0.332554]
[1728908181460,0.154036,64920.0,64912.0,0.332554]
[1728908181690,0.154036,64920.0,64912.0,0.39956993]
[1728908181946,0.308059,64923.0,64912.0,0.39956993]
[1728908181947,0.308059,64923.0,64912.0,0.41114228]
[1728908182222,0.154031,64922.0,64917.0,0.0013]
[1728908182469,0.38450962,64918.0,64917.0,0.0013]
[1728908182715,0.154052,64913.0,64912.0,0.0013]
[1728908182937,0.154052,64913.0,64912.0,0.0439189]
[1728908183163,0.25352847,64913.0,64898.0,0.08]
[1728908183415,0.15608,64901.0,64900.0,0.0213272]
[1728908183638,0.30860847,64901.0,64900.0,0.03326175]
[1728908183861,0.30760847,64901.0,64900.0,0.03126175]
[1728908184091,0.30760847,64901.0,64900.0,0.0312617]
[1728908184547,0.30760847,64901.0,64900.0,0.0320867]
[1728908184775,0.30760847,64901.0,64900.0,0.0235112]
[1728908185006,0.30960847,64901.0,64900.0,0.0235112]
[1728908185448,0.56307809,64901.0,64900.0,0.0181522]
[1728908185673,0.43260847,64901.0,64900.0,0.0181522]
[1728908187339,0.43060847,64901.0,64900.0,0.0181522]
[1728908187800,0.44060847,64901.0,64900.0,0.0181522]
[1728908188734,0.67107809,64901.0,64900.0,0.0181522]
[1728908188962,0.44060847,64901.0,64900.0,0.0181522]
[1728908190588,0.26352847,64901.0,64900.0,0.0181522]
[1728908190831,0.41760847,64901.0,64900.0,0.02350523]
[1728908191550,0.41760847,64901.0,64900.0,0.03133855]
[1728908192447,0.26352847,64901.0,64900.0,0.03133855]
[1728908192672,0.41760847,64901.0,64900.0,0.03133855]
[1728908192894,0.41760847,64901.0,64900.0,0.02350523]
[1728908193384,0.41760847,64901.0,64900.0,0.0181522]
[1728908194566,0.44060847,64901.0,64900.0,0.0181522]
[1728908196612,0.44674507,64901.0,64900.0,0.0181522]
[1728908197291,0.44074507,64901.0,64900.0,0.0181522]
[1728908197552,0.43674507,64901.0,64900.0,0.0181522]
[1728908198006,0.45274507,64901.0,64900.0,0.0181522]
[1728908198738,0.46274507,64901.0,64900.0,0.0181522]
[1728908198928,0.43360847,64901.0,64900.0,0.0181522]
[1728908199382,0.42160847,64901.0,64900.0,0.0181522]
[1728908199604,0.43560847,64901.0,64900.0,0.0181522]
[1728908200335,0.46060847,64901.0,64900.0,0.0181522]
[1728908201698,0.277102,64892.0,64891.0,0.0001]
[1728908201921,0.43063047,64892.0,64891.0,0.0001]
[1728908202866,0.43263047,64892.0,64891.0,0.0001]
[1728908203310,0.45063047,64892.0,64891.0,0.0001]
[1728908203535,0.44263047,64892.0,64891.0,0.0001]
[1728908203763,0.64817547,64892.0,64891.0,0.0001]
[1728908204208,0.65429373,64892.0,64891.0,0.0001]
[1728908204434,0.177137,64877.0,64876.0,2.06455455]
[1728908204664,0.33066547,64877.0,64876.0,2.06455455]
[1728908204906,0.43066547,64877.0,64876.0,2.06455455]
[1728908205149,0.43066547,64877.0,64876.0,2.07496363]
[1728908206363,0.44366547,64877.0,64876.0,2.04286363]
[1728908206598,0.43866547,64877.0,64876.0,2.04286363]
[1728908206839,0.43866547,64877.0,64876.0,2.04886363]
[1728908207120,0.43866547,64877.0,64843.0,0.00891223]
[1728908207121,0.387357,64860.0,64843.0,0.00891223]
[1728908207392,0.387357,64860.0,64840.0,0.08102968]
[1728908207393,0.154223,64841.0,64840.0,0.08102968]
[1728908207613,0.023,64843.0,64840.0,0.08102968]
[1728908207864,0.1,64857.0,64848.0,0.0013]
[1728908208112,0.079,64870.0,64840.0,0.08102968]
[1728908208113,0.023,64867.0,64856.0,0.0013]
[1728908208360,0.00610018,64873.0,64857.0,0.0013]
[1728908208593,0.00610018,64873.0,64862.0,0.0013]
[1728908208855,0.15415,64872.0,64864.0,0.154167]
[1728908209071,0.15415,64872.0,64865.0,0.154165]
[1728908209294,0.15352847,64877.0,64864.0,0.155467]
[1728908209295,0.308294,64873.0,64864.0,0.155467]
[1728908209521,0.1,64866.0,64863.0,0.0013]
[1728908209749,0.1,64866.0,64840.0,0.08102968]
[1728908209750,0.1,64863.0,64859.0,0.0013]
[1728908210001,0.1,64861.0,64858.0,0.0013]
[1728908210265,0.1,64863.0,64857.0,0.0013]
[1728908210727,0.1,64863.0,64862.0,0.0013]
[1728908210947,0.1,64863.0,64862.0,0.155473]
[1728908211164,0.1,64863.0,64862.0,0.0013]
[1728908211615,0.00591624,64868.0,64862.0,0.0013]
[1728908211836,0.1,64865.0,64862.0,0.0013]
[1728908212301,0.005,64863.0,64862.0,0.155473]
[1728908212842,0.15352847,64863.0,64856.0,0.0013]
[1728908213063,0.00609938,64876.0,64866.0,0.0013]
[1728908213064,0.01,64868.0,64866.0,0.0013]
[1728908213282,0.154161,64867.0,64866.0,0.0013]
[1728908213715,0.40768947,64867.0,64866.0,0.0013]
[1728908214144,0.1,64866.0,64865.0,0.0013]
[1728908214372,0.40769147,64866.0,64865.0,0.0013]
[1728908214830,0.154168,64864.0,64862.0,0.003736]
[1728908215048,0.154171,64863.0,64862.0,0.003736]
[1728908215287,0.31269947,64863.0,64862.0,0.003736]
[1728908215770,0.31269947,64863.0,64862.0,0.005036]
[1728908216335,0.30769947,64863.0,64862.0,0.003736]
[1728908216564,0.43069947,64863.0,64862.0,0.003736]
[1728908217565,0.44264846,64863.0,64862.0,0.003736]
[1728908217807,0.43664846,64863.0,64862.0,0.003736]
[1728908218046,0.44364846,64863.0,64862.0,0.003736]
[1728908218281,0.45914943,64863.0,64862.0,0.003736]
[1728908218514,0.46814943,64863.0,64862.0,0.003736]
[1728908222957,0.46114943,64863.0,64862.0,0.003736]
[1728908223181,0.023,64863.0,64862.0,0.159209]
[1728908223634,0.014,64863.0,64862.0,0.159209]
[1728908224571,0.254163,64866.0,64865.0,0.0013]
[1728908224811,0.40769147,64866.0,64865.0,0.0013]
[1728908225059,0.25352847,64866.0,64865.0,0.0013]
[1728908225283,0.00608303,64875.0,64868.0,0.0013]
[1728908225579,0.15352847,64874.0,64873.0,0.0013]
[1728908226053,0.30767247,64874.0,64873.0,0.0013]
[1728908226505,0.40767247,64874.0,64873.0,0.0013]
[1728908227167,0.41167247,64874.0,64873.0,0.0013]
[1728908227847,0.40767247,64874.0,64873.0,0.0013]
[1728908229052,0.26252847,64874.0,64873.0,0.0013]
[1728908229297,0.26952847,64874.0,64873.0,0.0013]
[1728908229750,0.26252847,64874.0,64873.0,0.0013]
[1728908230004,0.26952847,64874.0,64873.0,0.0013]
[1728908230261,0.26252847,64874.0,64873.0,0.0013]
[1728908230743,0.26652847,64874.0,64873.0,0.0013]
[1728908230989,0.013,64874.0,64873.0,0.155447]
[1728908231505,0.004,64874.0,64873.0,0.0013]
[1728908231762,0.004,64874.0,64873.0,0.155447]
[1728908232008,0.01,64874.0,64873.0,0.00663912]
[1728908232264,0.01,64874.0,64873.0,0.155447]
[1728908232508,0.01,64874.0,64873.0,0.0013]
[1728908232754,0.01,64874.0,64873.0,0.155447]
[1728908232981,0.01,64874.0,64873.0,0.00663932]
[1728908233228,0.01,64874.0,64873.0,0.16078632]
[1728908233713,0.01,64874.0,64873.0,0.24858632]
[1728908233948,0.01,64874.0,64873.0,0.25022001]
[1728908234186,0.01,64874.0,64873.0,0.25944158]
[1728908234442,0.006,64874.0,64873.0,0.41065383]
[1728908234673,0.001652,64877.0,64876.0,0.16044]
[1728908234907,0.001652,64877.0,64876.0,0.34788291]
[1728908238024,0.002652,64877.0,64876.0,0.34788291]
[1728908238750,0.001652,64877.0,64876.0,0.34788291]
[1728908239244,0.002652,64877.0,64876.0,0.34788291]
[1728908239495,0.002652,64877.0,64876.0,0.33934196]
[1728908239714,0.003652,64877.0,64876.0,0.33934196]
[1728908239958,0.002652,64877.0,64876.0,0.33934196]
[1728908240191,0.003652,64877.0,64876.0,0.33934196]
[1728908240659,0.003652,64877.0,64876.0,0.33434196]
[1728908240907,0.002652,64877.0,64876.0,0.33434196]
[1728908241125,0.002652,64877.0,64876.0,0.33934196]
[1728908241573,0.003652,64877.0,64876.0,0.33934196]
[1728908241802,0.003652,64877.0,64876.0,0.33933295]
[1728908243646,0.003652,64877.0,64876.0,0.35083698]
[1728908244078,0.003652,64877.0,64876.0,0.58209185]
[1728908244541,0.003652,64877.0,64876.0,0.35283698]
[1728908245225,0.003652,64877.0,64876.0,0.34750858]
[1728908245453,0.003652,64877.0,64876.0,0.36135898]
[1728908245678,0.002652,64877.0,64876.0,0.50338342]
[1728908245904,0.002652,64877.0,64876.0,0.51488323]
[1728908246133,0.003652,64877.0,64876.0,0.52638311]
[1728908246376,0.002652,64877.0,64876.0,0.88124766]
[1728908246826,0.003652,64877.0,64876.0,0.71468311]
[1728908247499,0.003652,64877.0,64876.0,0.88824766]
[1728908248218,0.00165,64910.0,64907.0,0.0013]
[1728908248478,0.00165,64910.0,64900.0,0.48172955]
[1728908248479,0.15517847,64910.0,64908.0,0.0013]
[1728908249373,0.15517847,64910.0,64909.0,0.154061]
[1728908249609,0.25517847,64910.0,64909.0,0.155361]
[1728908249872,0.10165,64910.0,64909.0,0.155361]
[1728908250112,0.00165,64910.0,64909.0,0.155361]